bitfinex/quotes_ETHUSD_20260203
["timestamp","ask_amount","ask_price","bid_price","bid_amount"]
[1770122684138,0.01318942,2297.4,2296.8,0.92309364]
[1770122684329,0.01318942,2297.5,2297.0,1.08837614]
[1770122684564,0.01318942,2297.5,2297.1,0.92309364]
[1770122684834,0.01318942,2297.6,2297.2,0.92309364]
[1770122685039,0.01318942,2297.6,2297.0,1.08837614]
[1770122685040,0.01318942,2297.6,2297.3,0.92309364]
[1770122685263,0.01318942,2297.6,2296.9,2.62591345]
[1770122685444,0.01318942,2297.6,2297.0,1.62007753]
[1770122685445,0.01318942,2297.5,2297.0,1.62007753]
[1770122685630,0.01318942,2297.6,2297.1,0.92210874]
[1770122685831,0.01318942,2297.6,2297.2,0.92210874]
[1770122686031,0.01318942,2297.6,2297.3,0.92210874]
[1770122686265,0.01318942,2297.6,2297.0,0.69796879]
[1770122686472,0.01318942,2297.6,2297.1,2.01005816]
[1770122686659,0.01318942,2297.6,2297.2,0.9217294]
[1770122686964,0.01318942,2297.6,2297.1,1.79448844]
[1770122687266,0.01318942,2297.6,2297.2,0.92186461]
[1770122687470,0.01318942,2297.6,2297.1,1.79448844]
[1770122687668,0.01318942,2297.6,2297.2,0.92156867]
[1770122687866,0.01318942,2297.6,2297.1,1.79448844]
[1770122688158,0.01318942,2297.6,2297.2,0.92159482]
[1770122688373,0.01318942,2297.6,2297.1,0.70615968]
[1770122688536,0.01318942,2297.6,2297.2,0.92141768]
[1770122688735,0.01318942,2297.6,2297.1,1.79448632]
[1770122688945,0.01318942,2297.6,2297.2,0.92141248]
[1770122689147,0.01318942,2297.6,2297.1,1.79448632]
[1770122689342,0.01318942,2297.6,2297.2,0.92125329]
[1770122689549,0.01318942,2297.6,2297.1,1.79448632]
[1770122689765,0.01318942,2297.6,2297.2,0.92125944]
[1770122690065,0.01318942,2297.6,2297.1,1.79448632]
[1770122690276,0.01318942,2297.6,2297.2,0.92117618]
[1770122690447,0.01318942,2297.6,2297.1,1.79448632]
[1770122690761,0.01318942,2297.6,2297.2,0.9209385]
[1770122690976,0.01318942,2297.6,2297.1,0.70615968]
[1770122691344,0.01318942,2297.6,2297.0,1.08834193]
[1770122691550,0.01318942,2297.6,2297.1,0.92064935]
[1770122691746,0.01318942,2297.6,2297.0,1.08834193]
[1770122692049,0.01318942,2297.5,2297.1,0.92063333]
[1770122692242,0.01318942,2297.5,2297.0,1.08836927]
[1770122692443,0.01318942,2297.6,2297.1,0.92050666]
[1770122692666,0.01318942,2297.6,2296.8,4.35387397]
[1770122692868,0.01318942,2297.6,2296.9,0.9204705]
[1770122693068,0.01318942,2297.6,2297.0,0.9204705]
[1770122693270,12.56037572,2297.6,2297.1,0.9204705]
[1770122693474,12.56037572,2297.6,2296.1,1.53851404]
[1770122693475,12.5471863,2296.6,2296.1,1.53851404]
[1770122693648,12.5471863,2296.6,2296.1,0.001]
[1770122693649,12.54994398,2296.6,2296.1,0.001]
[1770122693854,12.54994398,2296.6,2295.9,0.001]
[1770122693855,0.01318942,2296.3,2295.9,0.001]
[1770122694171,0.01318942,2296.7,2295.9,0.001]
[1770122694350,0.01318942,2296.6,2295.9,1.04086314]
[1770122694878,0.01318942,2296.6,2295.5,5.89485968]
[1770122694879,0.01318942,2295.7,2295.5,0.001]
[1770122695062,0.01318942,2295.6,2295.3,0.001]
[1770122695240,0.01318942,2295.6,2295.1,0.001]
[1770122695241,0.01318942,2295.5,2295.1,0.001]
[1770122695445,0.01318942,2295.4,2295.1,0.001]
[1770122695661,0.01318942,2295.7,2295.1,0.001]
[1770122695868,1.27186488,2295.7,2295.1,0.001]
[1770122697146,2.36090474,2295.7,2295.1,0.001]
[1770122697558,14.90809104,2295.7,2295.1,0.001]
[1770122698456,12.56037572,2295.5,2295.0,0.001]
[1770122699162,0.01318942,2295.4,2295.0,0.001]
[1770122699481,1.08918224,2295.3,2295.0,0.001]
[1770122699976,13.64955796,2295.3,2295.0,0.001]
[1770122700390,12.5471863,2295.1,2294.0,17.0844647]
[1770122700586,12.5471863,2295.1,2294.1,1.08972237]
[1770122700887,1.10237166,2295.3,2294.3,1.08965408]
[1770122700888,0.69111611,2295.0,2294.3,1.08965408]
[1770122701071,13.64955796,2295.3,2294.3,1.08965408]
[1770122701270,1.25867546,2295.4,2294.3,13.81492718]
[1770122701491,1.08898805,2295.8,2294.3,13.81492718]
[1770122701788,1.08878824,2296.2,2294.6,0.01318942]
[1770122702090,1.08878824,2296.2,2294.7,13.6382731]
[1770122702565,2.00164678,2296.5,2294.9,12.7252731]
[1770122702765,14.54883308,2296.5,2295.1,12.7252731]
[1770122702965,14.5620225,2296.5,2295.1,12.7252731]
[1770122703191,14.5620225,2296.5,2295.1,1.08927715]
[1770122703192,13.63598905,2296.1,2295.1,1.08927715]
[1770122703396,13.63598905,2296.1,2295.0,5.63102659]
[1770122703397,12.5471863,2295.9,2295.0,1.27384625]
[1770122703687,12.56037572,2295.7,2294.7,1.08945498]
[1770122703857,12.56037572,2295.7,2294.6,1.08949049]
[1770122704188,12.56037572,2295.6,2294.6,1.08949049]
[1770122704857,12.5471863,2296.0,2295.0,1.08930549]
[1770122705061,13.63598905,2296.1,2295.0,1.08930549]
[1770122705478,13.63598905,2296.1,2294.9,4.35733298]
[1770122705479,13.64917847,2296.1,2294.8,1.08941955]
[1770122705691,13.63598905,2296.1,2294.9,0.91790714]
[1770122705880,13.64917847,2296.1,2294.9,12.7252731]
[1770122706068,0.01318942,2296.0,2295.0,1.38146927]
[1770122708493,1.0888976,2295.9,2295.1,1.08927715]
[1770122710398,10.95877555,2296.9,2296.0,0.01318942]
[1770122710694,1.08826756,2297.3,2296.1,0.01318942]
[1770122710864,0.43541574,2297.2,2296.1,1.28967356]
[1770122711062,0.43541574,2297.2,2296.1,1.27648414]
[1770122711063,12.98260204,2297.2,2296.1,1.27648414]
[1770122711265,12.98260204,2297.2,2295.7,12.73846252]
[1770122711467,0.43541574,2297.2,2295.9,12.7252731]
[1770122711667,12.98260204,2297.2,2295.9,12.7252731]
[1770122711864,0.0011,2297.0,2295.9,12.7252731]
[1770122712676,0.0011,2297.0,2296.0,1.08885017]
[1770122712881,1.84363458,2297.0,2296.1,1.8169524]
[1770122715099,1.08842352,2296.9,2296.1,1.8169524]
[1770122715273,13.63560982,2296.9,2296.1,1.08879491]
[1770122716510,13.63560982,2296.9,2296.0,1.08881457]
[1770122716673,13.63560982,2296.9,2296.1,1.08880261]
[1770122717308,13.63560982,2296.9,2295.6,1.0890399]
[1770122717618,13.63560982,2296.9,2295.7,13.64292313]
[1770122717917,13.63560982,2296.9,2295.8,2.39084633]
[1770122718205,13.63560982,2296.9,2295.9,0.91765003]
[1770122718421,1.08842352,2296.9,2296.0,13.64316523]
[1770122718574,0.0011,2297.0,2296.2,12.7252731]
[1770122718776,0.0011,2297.0,2296.3,0.9176026]
[1770122718981,0.0011,2297.0,2296.4,1.36428757]
[1770122719181,0.0011,2297.0,2296.5,1.0886131]
[1770122719376,12.5482863,2297.0,2296.4,1.36428757]
[1770122719608,12.5482863,2297.0,2296.3,1.08870439]
[1770122719803,12.5482863,2297.0,2296.2,1.08871956]
[1770122719983,13.80311493,2297.0,2296.3,1.08870536]
[1770122720484,13.80311493,2297.0,2296.2,1.63312591]
[1770122721091,13.80311493,2297.0,2296.1,1.08877264]
[1770122721404,13.80311493,2297.0,2295.9,4.35550277]
[1770122721405,13.99640996,2296.9,2295.9,4.35550277]
[1770122721606,13.99640996,2296.9,2296.0,0.91902097]
[1770122721792,13.99640996,2296.9,2296.1,0.91902097]
[1770122721987,13.99640996,2296.9,2295.9,4.35550277]
[1770122721988,13.99640996,2296.9,2295.9,1.0888976]
[1770122722293,14.86858971,2296.8,2295.8,2.56210855]
[1770122722615,14.86858971,2296.8,2295.9,0.91982584]
[1770122722781,14.86858971,2296.8,2295.8,2.56210855]
[1770122722985,14.86858971,2296.8,2295.9,0.91985455]
[1770122723209,14.86858971,2296.8,2296.0,0.92064305]
[1770122723395,2.33890994,2296.7,2296.1,1.08880275]
[1770122723709,0.0011,2296.8,2296.1,1.08880275]
[1770122724409,0.0011,2296.8,2296.0,1.08881419]
[1770122725015,0.0011,2296.8,2296.1,0.92082716]
[1770122725188,0.0011,2296.8,2296.0,1.08881419]
[1770122725388,0.0011,2296.8,2296.1,2.00963437]
[1770122725594,0.0011,2296.8,2296.2,0.63649868]
[1770122726317,0.0011,2296.8,2296.1,1.08876964]
[1770122727218,12.90908644,2296.8,2295.8,2.56210249]
[1770122727437,12.90798644,2296.6,2295.9,0.92154382]
[1770122727729,12.90798644,2296.6,2295.5,0.913]
[1770122727888,12.90798644,2296.6,2295.7,1.08899221]
[1770122729111,12.90798644,2296.6,2295.7,1.08898982]
[1770122729409,1.40096942,2296.5,2295.7,4.35596605]
[1770122729580,1.08859031,2296.6,2295.8,0.92268599]
[1770122729780,0.0011,2296.8,2295.7,16.48164525]
[1770122729991,1.08958113,2296.8,2295.8,13.04823068]
[1770122730196,1.08958113,2296.8,2295.9,0.92255148]
[1770122731522,1.08958113,2296.8,2296.1,1.08880275]
[1770122731700,3.05031058,2296.8,2296.1,1.08880275]
[1770122732701,3.05031058,2296.8,2295.8,12.1256792]
[1770122732901,15.97148644,2296.8,2295.9,0.92402314]
[1770122733125,15.97148644,2296.8,2295.5,1.53751404]
[1770122733126,12.90798644,2296.6,2295.5,1.53751404]
[1770122733428,13.99669436,2296.3,2295.6,0.92451786]
[1770122733618,1.25026546,2296.2,2295.5,1.08906847]
[1770122733822,1.25026546,2296.2,2295.6,2.01390791]
[1770122734009,1.25026546,2296.2,2295.5,1.08905499]
[1770122734213,1.25026546,2296.2,2295.6,0.92481997]
[1770122734526,1.25026546,2296.2,2295.5,1.08905499]
[1770122734831,1.25026546,2296.2,2295.6,0.92533123]
[1770122735001,1.25026546,2296.2,2295.5,1.63361047]
[1770122735202,1.25026546,2296.2,2295.6,0.9253307]
[1770122735428,1.08880275,2296.1,2295.7,0.001]
[1770122737926,1.25026546,2296.2,2295.7,0.001]
[1770122738127,1.08866051,2296.4,2295.7,0.001]
[1770122738332,1.08866051,2296.4,2295.8,0.92606869]
[1770122738534,1.08866051,2296.4,2295.7,0.001]
[1770122739216,2.00164601,2296.5,2295.8,0.92602732]
[1770122739411,2.00164601,2296.5,2295.7,0.001]
[1770122739612,0.913,2296.5,2295.8,0.92616818]
[1770122739835,0.913,2296.5,2296.0,1.08885017]
[1770122740041,1.08967834,2296.6,2296.0,1.08885017]
[1770122740409,1.08967834,2296.6,2296.1,0.92632756]
[1770122740617,1.08967834,2296.6,2296.0,1.08885017]
[1770122740816,0.0011,2296.6,2296.1,0.92655983]
[1770122741139,2.00249472,2297.0,2296.2,0.92655983]
[1770122741314,2.00249472,2297.0,2296.3,0.92655983]
[1770122741514,0.9141,2297.0,2296.4,0.92655983]
[1770122741716,0.9141,2297.0,2296.5,0.9259843]
[1770122741915,0.9141,2297.0,2296.0,15.29648483]
[1770122742123,0.9141,2297.0,2296.1,3.12110748]
[1770122742324,0.9141,2297.0,2296.2,0.92527549]
[1770122742516,0.9141,2297.0,2296.3,0.92527549]
[1770122742730,0.9141,2297.0,2296.4,0.92527549]
[1770122743042,0.9141,2297.0,2296.5,0.92527549]
[1770122743213,0.9141,2297.0,2296.2,1.15566459]
[1770122743414,0.0011,2297.0,2296.3,1.25964586]
[1770122743615,0.0011,2297.0,2296.4,0.9244962]
[1770122743856,0.0011,2297.0,2296.5,0.9244962]
[1770122744070,0.0011,2297.0,2296.6,0.92436698]
[1770122744217,0.0011,2297.0,2296.4,1.08866051]
[1770122744417,0.0011,2297.0,2296.5,1.61759559]
[1770122744620,0.0011,2297.0,2296.5,0.69341168]
[1770122745141,1.08828138,2297.2,2296.5,0.69341168]
[1770122746544,1.08828138,2297.2,2296.5,1.78199381]
[1770122748036,0.0011,2297.0,2296.5,1.78199381]
[1770122749267,0.0011,2297.0,2296.6,1.70222128]
[1770122749432,0.0011,2297.2,2296.6,13.82790048]
[1770122749633,0.0011,2297.4,2296.7,13.05004125]
[1770122749832,0.0011,2297.4,2296.8,13.05004125]
[1770122750032,0.0011,2297.4,2296.8,12.1256792]
[1770122750250,0.0011,2297.4,2296.9,1.21256792]
[1770122750734,1.08929986,2297.4,2296.9,1.21256792]
[1770122750933,1.08929986,2297.4,2296.6,14.33538865]
[1770122751135,1.08929986,2297.4,2296.7,0.92399794]
[1770122751335,0.0011,2297.4,2296.8,1.08847091]
[1770122753336,0.0011,2297.4,2296.7,4.3539996]
[1770122753968,0.0011,2297.4,2296.8,13.67464238]
[1770122754133,0.0011,2297.6,2296.9,1.8028642]
[1770122754534,1.08912739,2297.8,2296.9,1.8028642]
[1770122754535,0.0011,2297.8,2297.0,13.67414821]
[1770122754731,0.0011,2298.0,2297.2,12.75209405]
[1770122755038,0.0011,2298.0,2297.3,13.67380399]
[1770122755246,0.0011,2298.0,2297.3,12.75209405]
[1770122755447,0.0011,2298.0,2297.5,1.08813928]
[1770122756335,0.0011,2298.2,2297.5,13.84023333]
[1770122756752,0.0011,2298.2,2297.5,1.08813928]
[1770122760971,0.0011,2298.0,2297.5,1.08813928]
[1770122761167,0.0011,2298.2,2297.5,1.08813928]
[1770122761372,0.0011,2298.2,2297.6,14.69891069]
[1770122761538,0.0011,2298.6,2297.7,13.66509405]
[1770122761875,0.0011,2298.9,2297.8,13.66924539]
[1770122761876,1.08860434,2298.9,2297.8,13.66924539]
[1770122762167,1.08860434,2298.9,2297.8,12.75209405]
[1770122762342,0.0011,2298.9,2297.9,13.66824138]
[1770122762543,1.08858176,2298.9,2298.0,1.36682414]
[1770122762742,1.08858176,2298.9,2298.1,1.08785518]
[1770122763352,0.0011,2298.9,2298.1,1.08785518]
[1770122763871,0.0011,2298.9,2298.1,13.83994923]
[1770122766373,0.0011,2299.1,2298.1,13.83994923]
[1770122766374,0.0011,2299.1,2298.2,12.75209405]
[1770122766562,0.0011,2299.1,2298.4,12.75209405]
[1770122766746,0.0011,2299.1,2298.5,13.83975991]
[1770122767974,0.0011,2299.5,2298.6,13.66552045]
[1770122768172,0.0011,2299.5,2298.6,12.75209405]
[1770122768377,1.08810587,2299.9,2298.7,12.75209405]
[1770122768683,12.53936588,2299.8,2298.8,1.27520941]
[1770122768845,12.53936588,2299.8,2298.7,1.08755235]
[1770122768846,12.5525553,2299.8,2298.7,1.08752943]
[1770122769051,12.5525553,2299.8,2298.3,18.48698156]
[1770122769052,12.53826588,2299.6,2298.6,1.08758124]
[1770122769369,12.53826588,2299.6,2298.7,1.08756979]
[1770122770353,12.53826588,2299.6,2298.8,1.08752047]
[1770122771276,1.08719286,2299.5,2298.5,1.08766586]
[1770122771454,2.88593482,2299.5,2298.6,0.63505098]
[1770122772751,15.4242007,2299.5,2298.6,0.63505098]
[1770122773152,15.4242007,2299.5,2298.5,1.08766586]
[1770122775063,15.4242007,2299.5,2298.8,0.001]
[1770122775259,0.0011,2299.3,2298.8,0.001]
[1770122775471,15.4242007,2299.5,2298.8,0.001]
[1770122775669,1.08719286,2299.5,2298.8,0.001]
[1770122775973,0.54359643,2299.4,2298.8,0.001]
[1770122777566,14.1691108,2299.4,2298.8,0.001]
[1770122782090,13.08186231,2299.4,2298.8,0.001]
[1770122782292,0.54359643,2299.4,2298.8,0.001]
[1770122782492,1.08829497,2299.5,2298.8,0.001]
[1770122784092,0.0011,2299.5,2298.8,12.47651822]
[1770122784293,0.0011,2299.5,2298.9,13.39404097]
[1770122784496,0.0011,2299.8,2299.0,13.39404097]
[1770122784688,0.0011,2299.8,2299.1,1.3394041]
[1770122786070,0.0011,2299.8,2299.2,1.08733472]
[1770122786993,0.0011,2299.8,2299.1,1.08737521]
[1770122786994,12.59007657,2299.8,2299.1,1.08737521]
[1770122787975,0.0011,2299.6,2299.0,0.001]
[1770122788177,0.0011,2299.6,2299.1,0.91927696]
[1770122788375,0.0011,2299.6,2299.0,0.001]
[1770122788701,0.0011,2299.6,2299.1,0.91978349]
[1770122789010,0.0011,2299.6,2299.0,1.90807339]
[1770122789174,0.0011,2299.6,2299.1,0.91980165]
[1770122789368,0.0011,2299.6,2299.0,1.90807339]
[1770122789567,0.0011,2299.6,2299.1,0.92046986]
[1770122789881,0.0011,2299.6,2299.0,1.90807339]
[1770122790093,0.0011,2299.6,2299.2,1.08733472]
[1770122792098,0.0011,2299.6,2299.1,4.34952278]
[1770122792299,0.0011,2299.6,2299.2,0.92117381]
[1770122792601,0.0011,2299.6,2299.1,6.88212602]
[1770122792798,0.0011,2299.6,2299.2,0.92131752]
[1770122793386,0.0011,2299.6,2299.3,0.92131752]
[1770122793694,0.0011,2299.6,2299.1,6.88212602]
[1770122793906,0.0011,2299.6,2299.2,3.27243047]
[1770122794132,0.0011,2299.6,2299.3,0.92155405]
[1770122794279,0.0011,2299.6,2299.2,3.43817791]
[1770122794601,0.0011,2299.6,2299.3,0.92177513]
[1770122794804,0.0011,2299.6,2299.2,3.43817791]
[1770122795099,0.0011,2299.6,2299.3,0.92177616]
[1770122795301,0.0011,2299.6,2299.3,1.08726706]
[1770122795598,0.0011,2299.6,2299.3,2.87847908]
[1770122796602,0.0011,2299.6,2299.3,1.08728282]
[1770122798099,0.0011,2299.8,2299.4,0.92196764]
[1770122798303,0.0011,2299.8,2299.5,0.92196764]
[1770122798489,0.0011,2299.8,2299.3,13.56280104]
[1770122798685,0.0011,2299.8,2299.5,1.08719286]
[1770122799484,0.0011,2299.8,2299.6,0.92143155]
[1770122799682,0.0011,2299.9,2299.5,13.56271108]
[1770122799881,12.59007657,2300.8,2299.7,13.63118281]
[1770122800097,12.59007657,2300.8,2299.8,13.39667683]
[1770122800098,13.67668379,2300.8,2299.8,13.39667683]
[1770122800391,13.67668379,2300.8,2299.9,0.92115861]
[1770122800392,12.59007657,2300.8,2299.9,0.92115861]
[1770122800591,13.67667201,2300.8,2300.1,1.08690926]
[1770122801296,0.0011,2300.6,2300.1,1.08690926]
[1770122802279,0.0011,2300.6,2300.1,13.56242748]
[1770122802485,0.0011,2300.6,2300.2,15.18481177]
[1770122802793,0.0011,2300.6,2300.3,1.08681476]
[1770122803125,0.0011,2300.8,2300.3,1.08681476]
[1770122803300,13.67538387,2301.2,2300.3,1.08681476]
[1770122803502,13.67538387,2301.2,2300.3,13.56233298]
[1770122803503,12.58897657,2301.2,2300.3,13.56233298]
[1770122803687,1.89326203,2301.2,2300.4,2.88721183]
[1770122803887,1.89326203,2301.2,2300.4,1.97006277]
[1770122804799,2.97965547,2301.2,2300.4,1.97006277]
[1770122805000,12.58897657,2300.9,2300.1,1.99887394]
[1770122805185,12.58897657,2300.9,2300.2,1.08684361]
[1770122805186,12.60216599,2300.9,2300.2,1.08684361]
[1770122805587,12.58897657,2300.9,2300.2,1.08684361]
[1770122806214,12.58897657,2300.9,2300.3,1.08681401]
[1770122806419,12.58897657,2301.1,2300.4,1.08676223]
[1770122806646,12.58897657,2301.1,2300.4,1.63016383]
[1770122806789,12.58897657,2301.1,2300.4,1.08676223]
[1770122806990,1.08648413,2301.0,2300.3,1.08681476]
[1770122807522,13.67544355,2301.1,2300.3,1.08681476]
[1770122807819,1.08646698,2301.1,2300.3,1.08681476]
[1770122808218,13.68863297,2301.1,2300.2,1.08682523]
[1770122808397,14.58305756,2301.0,2300.2,1.08682523]
[1770122809215,14.58305756,2301.0,2300.1,4.34753649]
[1770122809409,15.66957488,2301.0,2300.1,4.34753649]
[1770122809918,3.08059831,2301.0,2300.2,12.47551822]
[1770122810117,13.67541678,2301.1,2300.2,12.47551822]
[1770122810487,13.67541678,2301.1,2300.1,4.34753649]
[1770122811316,12.92040109,2300.8,2299.9,1.99900093]
[1770122811505,12.92040109,2300.8,2299.9,1.99898178]
[1770122811506,11.83382251,2300.6,2299.9,1.99898178]
[1770122813405,1.08672027,2300.5,2299.9,1.99898178]
[1770122814145,13.60957253,2300.5,2299.6,6.25522195]
[1770122814301,13.60957253,2300.5,2299.7,0.91727637]
[1770122814302,13.62276195,2300.5,2299.7,0.91727637]
[1770122814509,12.52285226,2300.3,2299.6,1.08711381]
[1770122815232,12.52285226,2300.3,2299.5,1.08816148]
[1770122815416,13.60970272,2300.3,2299.5,0.001]
[1770122816011,1.08685046,2300.3,2299.5,0.001]
[1770122816208,1.08685046,2300.3,2299.5,12.83781433]
[1770122816408,1.08685046,2300.3,2299.6,1.28378143]
[1770122816706,1.08685046,2300.3,2299.5,12.83781433]
[1770122817431,0.01428942,2300.8,2299.9,13.99247892]
[1770122817432,0.0011,2300.8,2299.9,13.99247892]
[1770122817606,0.0011,2300.8,2300.0,14.66530055]
[1770122817808,0.0011,2300.8,2300.1,0.91748622]
[1770122818026,0.0011,2300.8,2300.2,2.38401628]
[1770122818233,0.0011,2300.8,2300.2,1.46653006]
[1770122818739,4.6738621,2301.5,2300.2,1.46653006]
[1770122818740,2.346001,2302.8,2301.1,0.01318942]
[1770122818914,0.01318942,2303.6,2301.1,0.01318942]
[1770122818915,0.30933277,2304.4,2303.5,1.13484626]
[1770122819238,0.01318942,2304.0,2303.6,0.39633206]
[1770122819424,0.01318942,2303.4,2302.5,2.01679431]
[1770122819622,2.1052124,2303.3,2302.5,1.08576259]
[1770122819832,1.08516364,2303.8,2302.6,0.91058707]
[1770122820022,1.09835306,2303.8,2302.7,0.91058707]
[1770122820341,1.09835306,2303.8,2302.5,1.08576259]
[1770122820342,0.01318942,2303.6,2302.5,1.08576259]
[1770122820535,0.01318942,2303.6,2302.2,1.14148175]
[1770122820536,0.01318942,2303.1,2302.2,1.14148175]
[1770122820714,0.01318942,2303.0,2302.3,0.91102017]
[1770122820910,0.01318942,2303.0,2302.0,2.45451135]
[1770122820911,0.01318942,2303.0,2302.0,0.22705272]
[1770122821238,0.01318942,2302.9,2302.1,1.99676444]
[1770122821415,0.01318942,2302.6,2302.0,0.22705272]
[1770122821620,0.01318942,2302.4,2302.0,0.22705272]
[1770122821808,0.01318942,2302.3,2301.4,1.08626207]
[1770122822132,1.25624205,2302.3,2301.5,0.91053071]
[1770122822330,1.25624205,2302.3,2301.2,2.05248175]
[1770122822505,0.01318942,2302.2,2301.3,0.91014509]
[1770122822706,0.01318942,2301.9,2301.1,0.22688426]
[1770122823102,0.01318942,2301.8,2301.1,0.22688426]
[1770122823302,1.09939032,2301.6,2301.1,0.22688426]
[1770122823909,1.09939032,2301.6,2301.1,0.22249426]
[1770122824106,2.89871538,2301.6,2301.1,0.22249426]
[1770122824330,0.01318942,2301.5,2301.1,0.22249426]
[1770122824518,2.88552596,2301.6,2301.1,0.22249426]
[1770122824721,2.89871538,2301.6,2301.1,0.22249426]
[1770122824921,2.89871538,2301.6,2300.7,1.08659509]
[1770122825522,1.09939032,2301.6,2300.8,1.62990185]
[1770122825724,1.08601216,2302.0,2300.9,0.91128152]
[1770122825911,1.08601216,2302.0,2301.0,0.91128152]
[1770122825912,0.01318942,2301.9,2301.0,0.91128152]
[1770122826105,0.0011,2301.4,2300.8,1.08657521]
[1770122826458,4.35723807,2302.1,2300.9,0.91119992]
[1770122826459,1.09918168,2302.1,2300.9,0.91119992]
[1770122826622,1.08575477,2302.6,2301.0,13.8752852]
[1770122826936,12.52285226,2302.8,2301.4,1.14148175]
[1770122826937,0.01318942,2302.7,2301.4,1.14148175]
[1770122827135,0.01428942,2302.6,2301.5,0.91119992]
[1770122827437,0.01428942,2302.6,2301.2,1.14148175]
[1770122827438,0.01318942,2302.3,2301.2,1.14148175]
[1770122827611,1.09907198,2302.3,2301.4,1.08629529]
[1770122827933,1.08588256,2302.3,2301.5,1.54467086]
[1770122828137,4.35639681,2302.5,2301.5,0.63419521]
[1770122828138,1.0858051,2302.5,2301.5,0.63419521]
[1770122828309,1.0858051,2302.5,2301.6,0.91038384]
[1770122828505,1.0858051,2302.5,2301.5,0.63419521]
[1770122828714,1.63011234,2302.5,2301.6,0.91038207]
[1770122828933,1.63011234,2302.5,2301.5,0.63419521]
[1770122829152,0.01318942,2302.3,2301.6,0.91039935]
[1770122829321,0.01318942,2302.4,2301.5,0.63419521]
[1770122829518,0.01318942,2302.4,2301.6,0.91051356]
[1770122829724,1.08587065,2302.3,2301.6,0.26310041]
[1770122829925,1.08587065,2302.3,2301.1,5.87122893]
[1770122829926,0.01318942,2302.0,2301.2,1.14148175]
[1770122830233,0.01318942,2302.0,2301.0,1.40037637]
[1770122830234,0.01318942,2301.8,2301.0,1.40037637]
[1770122830424,0.01318942,2301.8,2301.1,1.08641254]
[1770122830625,0.01318942,2301.8,2301.0,1.4003867]
[1770122830833,0.01318942,2301.8,2301.1,1.48589975]
[1770122831037,0.01318942,2301.6,2301.0,0.31392569]
[1770122831423,0.01318942,2301.5,2300.6,1.08663753]
[1770122831739,0.01318942,2301.5,2300.7,1.99807263]
[1770122831740,1.09944611,2301.5,2300.7,1.99807263]
[1770122831929,1.08618691,2301.7,2300.8,0.91144748]
[1770122832132,1.68723206,2302.4,2300.9,15.09629794]
[1770122832426,0.54430724,2302.5,2301.3,1.13930935]
[1770122832427,1.63011924,2302.5,2301.3,1.13930935]
[1770122832625,1.63011924,2302.5,2301.4,2.05075683]
[1770122832808,1.63011924,2302.5,2301.5,0.91144748]
[1770122833008,0.55749666,2302.5,2301.6,0.91144748]
[1770122833215,1.08686467,2302.6,2301.7,0.93392117]
[1770122833410,1.10005409,2302.6,2301.5,0.02407724]
[1770122833633,1.10005409,2302.6,2301.6,0.90960722]
[1770122833838,1.10005409,2302.6,2301.7,1.99576093]
[1770122834034,1.10005409,2302.6,2301.8,0.63403758]
[1770122834539,0.01318942,2302.4,2301.8,0.63403758]
[1770122834835,0.01318942,2302.3,2301.5,1.08622029]
[1770122835027,0.01318942,2302.2,2301.4,1.11034425]
[1770122835217,0.01318942,2302.1,2301.5,0.9096823]
[1770122835540,0.01318942,2302.2,2301.3,1.11037615]
[1770122835739,0.01318942,2302.1,2301.4,2.65549499]
[1770122835936,1.09918527,2302.1,2301.5,0.90969077]
[1770122836621,0.01318942,2302.0,2301.5,0.90969077]
[1770122837738,1.09920536,2302.0,2301.5,0.90969077]
[1770122837929,0.01318942,2302.0,2301.5,0.90969077]
[1770122838135,1.08577633,2302.5,2301.6,0.2896188]
[1770122838341,13.60969984,2302.6,2301.7,0.90969077]
[1770122838537,13.60969984,2302.6,2301.6,0.2896188]
[1770122838727,13.60969984,2302.6,2301.7,0.90935421]
[1770122839045,0.0011,2302.1,2301.6,0.2896188]
[1770122839342,0.0011,2302.1,2301.7,0.9093529]
[1770122839537,0.0011,2302.1,2301.6,0.2896188]
[1770122839742,0.0011,2302.1,2301.7,0.90936121]
[1770122839926,0.0011,2302.1,2301.7,0.22862263]
[1770122840334,0.0011,2302.1,2301.5,0.001]
[1770122840946,0.01428942,2302.1,2301.5,0.001]
[1770122841147,0.01428942,2302.1,2301.5,1.08724798]
[1770122841523,0.01318942,2301.9,2301.5,0.001]
[1770122841722,0.01318942,2302.0,2301.5,0.001]
[1770122842330,0.01318942,2301.9,2301.5,0.001]
[1770122842530,2.39757659,2302.0,2301.5,0.001]
[1770122842851,2.38434824,2302.0,2301.5,0.001]
[1770122843149,1.08601632,2302.0,2301.5,0.001]
[1770122843354,0.01318942,2301.9,2301.5,0.001]
[1770122843753,0.01318942,2301.8,2301.5,0.001]
[1770122844251,1.09929594,2301.8,2301.5,0.001]
[1770122844631,17.30083621,2302.1,2301.5,0.001]
[1770122844832,2.8306424,2302.0,2301.5,0.001]
[1770122845034,12.95584039,2301.7,2301.0,1.13930935]
[1770122845233,0.01318942,2301.6,2301.1,0.9117314]
[1770122845551,0.01318942,2301.6,2300.9,1.08650377]
[1770122845728,0.01318942,2301.6,2301.0,0.91271439]
[1770122846055,0.01318942,2301.5,2301.1,0.91271439]
[1770122846260,1.08629529,2301.4,2300.8,1.13930935]
[1770122846464,1.09942833,2301.6,2300.9,2.05299301]
[1770122846675,1.08623891,2301.6,2300.9,2.04046777]
[1770122847126,1.08618574,2301.7,2300.9,2.04046777]
[1770122847327,1.08609259,2301.9,2301.0,1.13930935]
[1770122847550,1.09928201,2301.9,2301.0,1.13930935]
[1770122847855,1.08709032,2302.1,2301.3,1.13930935]
[1770122848021,1.08709032,2302.1,2301.4,0.2664833]
[1770122848227,0.0011,2302.1,2301.4,0.2664833]
[1770122848431,0.0011,2302.1,2301.5,1.08624809]
[1770122848635,1.08568202,2302.7,2301.9,1.13930935]
[1770122848873,0.01318942,2302.4,2301.8,1.13930935]
[1770122849035,12.94265097,2302.5,2301.7,1.13930935]
[1770122849232,1.53578838,2302.7,2301.9,1.13930935]
[1770122849233,1.52259896,2302.7,2301.9,1.13930935]
[1770122849555,1.52259896,2302.7,2302.1,1.13930935]
[1770122849865,1.52259896,2302.7,2302.2,1.13930935]
[1770122850234,0.43691694,2302.7,2302.1,1.13930935]
[1770122850445,0.01318942,2302.7,2302.1,0.2664833]
[1770122850644,0.01318942,2302.7,2302.1,1.13930935]
[1770122850846,0.01318942,2302.7,2301.9,1.13930935]
[1770122850847,0.01318942,2302.4,2301.9,1.13930935]
[1770122851082,0.01318942,2302.2,2301.6,1.13930935]
[1770122851382,0.01318942,2302.3,2301.6,1.13930935]
[1770122851581,0.01318942,2302.2,2301.6,1.13930935]
[1770122851783,0.01318942,2302.0,2301.5,1.13930935]
[1770122852010,0.01318942,2302.0,2301.3,1.14511186]
[1770122852011,0.01318942,2301.8,2301.3,1.14511186]